[Event "Titled Tuesday Blitz July 11 Early 2023"]
[White "Sarkar, Justin"]
[Black "FromTexas54"]
[WhiteFideId "2010011"]
[WhiteElo "2248"]
[BlackElo "2508"]
[Result "0-1"]
[Round "3"]
[TimeControl "180+2"]
[Date "2023.07.11"]
[WhiteClock "0:00:00"]
[BlackClock "0:00:57"]
[Board "172"]

1. d4 {[%clk 0:02:54]}  Nf6 {[%clk 0:02:50]} 2. c4 {[%clk 0:02:54]}  e6 {[%clk 0:02:50]} 3. Nc3 {[%clk 0:02:51]}  Bb4 {[%clk 0:02:51]} 4. Qc2 {[%clk 0:02:49]}  O-O {[%clk 0:02:50]} 5. a3 {[%clk 0:02:43]}  Bxc3+ {[%clk 0:02:50]} 6. Qxc3 {[%clk 0:02:44]}  b5 {[%clk 0:02:50]} 7. cxb5 {[%clk 0:02:35]}  c6 {[%clk 0:02:50]} 8. bxc6 {[%clk 0:02:21]}  Nxc6 {[%clk 0:02:51]} 9. b4 {[%clk 0:02:22]}  Bb7 {[%clk 0:02:49]} 10. e3 {[%clk 0:02:11]}  Rc8 {[%clk 0:02:48]} 11. Qb2 {[%clk 0:02:09]}  d6 {[%clk 0:02:24]} 12. Nf3 {[%clk 0:02:03]}  Ne7 {[%clk 0:02:18]} 13. Bd3 {[%clk 0:01:54]}  Ng6 {[%clk 0:02:08]} 14. Qe2 {[%clk 0:01:39]}  Ne4 {[%clk 0:01:46]} 15. Bxe4 {[%clk 0:01:08]}  Bxe4 {[%clk 0:01:46]} 16. O-O {[%clk 0:01:09]}  Rc2 {[%clk 0:01:42]} 17. Nd2 {[%clk 0:01:03]}  Bb7 {[%clk 0:01:19]} 18. Rb1 {[%clk 0:00:09]}  Qb6 {[%clk 0:01:12]} 19. Bb2 {[%clk 0:00:01]}  Ba6 {[%clk 0:01:11]} 20. Qd1 {[%clk 0:00:01]}  Rfc8 {[%clk 0:01:05]} 21. Re1 {[%clk 0:00:01]}  Nh4 {[%clk 0:00:59]} 22. g3 {[%clk 0:00:00]}  Rxd2 {[%clk 0:00:57]} 0-1


[Site "https://www.chess.com"]

[Event "Titled Tuesday Blitz July 11 Early 2023"]
[White "Lakshmi C"]
[Black "Omariev, Maksim"]
[WhiteFideId "25035347"]
[BlackFideId "4193423"]
[WhiteElo "2103"]
[BlackElo "2427"]
[Result "0-1"]
[Round "3"]
[TimeControl "180+2"]
[Date "2023.07.11"]
[WhiteClock "0:00:00"]
[BlackClock "0:01:52"]
[Board "177"]

1. g3 {[%clk 0:02:27]}  h5 {[%clk 0:02:58]} 2. Bg2 {[%clk 0:02:26]}  h4 {[%clk 0:02:59]} 3. e4 {[%clk 0:02:25]}  d6 {[%clk 0:02:54]} 4. f4 {[%clk 0:02:19]}  h3 {[%clk 0:02:55]} 5. Bf3 {[%clk 0:02:19]}  e5 {[%clk 0:02:53]} 6. d3 {[%clk 0:02:18]}  Nc6 {[%clk 0:02:52]} 7. Ne2 {[%clk 0:02:14]}  Nf6 {[%clk 0:02:50]} 8. f5 {[%clk 0:01:47]}  d5 {[%clk 0:02:44]} 9. O-O {[%clk 0:01:27]}  Bc5+ {[%clk 0:02:23]} 10. Kh1 {[%clk 0:01:27]}  dxe4 {[%clk 0:02:22]} 11. dxe4 {[%clk 0:01:27]}  Qe7 {[%clk 0:02:23]} 12. Nbc3 {[%clk 0:01:22]}  Bd7 {[%clk 0:02:22]} 13. Bg5 {[%clk 0:01:11]}  O-O-O {[%clk 0:02:17]} 14. Nd5 {[%clk 0:00:46]}  Qd6 {[%clk 0:02:16]} 15. c3 {[%clk 0:00:03]}  Ne7 {[%clk 0:01:57]} 16. Nb4 {[%clk 0:00:01]}  Bxb4 {[%clk 0:01:55]} 17. cxb4 {[%clk 0:00:01]}  Qxb4 {[%clk 0:01:56]} 18. Qc2 {[%clk 0:00:00]}  Ba4 {[%clk 0:01:52]} 0-1


[Site "https://www.chess.com"]

[Event "Titled Tuesday Blitz July 11 Early 2023"]
[White "Samarth J Rao"]
[Black "Ahmad, Khagan"]
[WhiteFideId "46652370"]
[BlackFideId "13431552"]
[WhiteElo "2310"]
[BlackElo "2634"]
[Result "1-0"]
[Round "3"]
[TimeControl "180+2"]
[Date "2023.07.11"]
[WhiteClock "0:00:07"]
[BlackClock "0:00:00"]
[Board "179"]

1. Nf3 {[%clk 0:03:00]}  Nf6 {[%clk 0:02:55]} 2. Ng1 {[%clk 0:03:00]}  Ng8 {[%clk 0:02:54]} 3. Nf3 {[%clk 0:03:00]}  Nf6 {[%clk 0:02:54]} 4. e3 {[%clk 0:03:00]}  c5 {[%clk 0:02:53]} 5. Ke2 {[%clk 0:03:01]}  e6 {[%clk 0:02:03]} 6. g3 {[%clk 0:02:50]}  b6 {[%clk 0:02:00]} 7. Bg2 {[%clk 0:02:50]}  Bb7 {[%clk 0:02:00]} 8. Re1 {[%clk 0:02:50]}  Be7 {[%clk 0:01:44]} 9. Kf1 {[%clk 0:02:49]}  d6 {[%clk 0:01:44]} 10. Kg1 {[%clk 0:02:43]}  O-O {[%clk 0:01:44]} 11. b3 {[%clk 0:02:36]}  e5 {[%clk 0:01:43]} 12. d3 {[%clk 0:02:32]}  Nc6 {[%clk 0:01:39]} 13. e4 {[%clk 0:02:26]}  d5 {[%clk 0:01:36]} 14. exd5 {[%clk 0:02:25]}  Nxd5 {[%clk 0:01:28]} 15. Bb2 {[%clk 0:02:16]}  f6 {[%clk 0:01:08]} 16. Nbd2 {[%clk 0:02:01]}  Qd7 {[%clk 0:01:05]} 17. Nc4 {[%clk 0:01:54]}  b5 {[%clk 0:01:04]} 18. Ncd2 {[%clk 0:01:47]}  Nd4 {[%clk 0:01:02]} 19. Ne4 {[%clk 0:01:36]}  Rac8 {[%clk 0:00:24]} 20. c4 {[%clk 0:01:33]}  Nxf3+ {[%clk 0:00:23]} 21. Qxf3 {[%clk 0:01:30]}  Nb4 {[%clk 0:00:23]} 22. Nxf6+ {[%clk 0:01:29]}  Bxf6 {[%clk 0:00:21]} 23. Qxb7 {[%clk 0:01:29]}  Qxb7 {[%clk 0:00:21]} 24. Bxb7 {[%clk 0:01:29]}  Rb8 {[%clk 0:00:20]} 25. Be4 {[%clk 0:01:29]}  Rfd8 {[%clk 0:00:19]} 26. Red1 {[%clk 0:01:27]}  a5 {[%clk 0:00:15]} 27. Bc3 {[%clk 0:01:25]}  Nc2 {[%clk 0:00:12]} 28. Rac1 {[%clk 0:01:24]}  Nd4 {[%clk 0:00:11]} 29. Kf1 {[%clk 0:01:24]}  b4 {[%clk 0:00:11]} 30. Bxd4 {[%clk 0:01:20]}  Rxd4 {[%clk 0:00:11]} 31. Bd5+ {[%clk 0:01:17]}  Kf8 {[%clk 0:00:12]} 32. Ke2 {[%clk 0:01:16]}  Ke7 {[%clk 0:00:12]} 33. h3 {[%clk 0:01:14]}  Kd6 {[%clk 0:00:13]} 34. f3 {[%clk 0:01:14]}  Rb6 {[%clk 0:00:13]} 35. Rc2 {[%clk 0:01:14]}  Ra6 {[%clk 0:00:13]} 36. a4 {[%clk 0:01:10]}  bxa3 {[%clk 0:00:10]} 37. Ra2 {[%clk 0:01:10]}  h5 {[%clk 0:00:08]} 38. h4 {[%clk 0:01:07]}  g5 {[%clk 0:00:07]} 39. hxg5 {[%clk 0:01:07]}  Bxg5 {[%clk 0:00:08]} 40. Rh1 {[%clk 0:01:04]}  h4 {[%clk 0:00:09]} 41. f4 {[%clk 0:01:05]}  exf4 {[%clk 0:00:07]} 42. gxh4 {[%clk 0:01:05]}  Bxh4 {[%clk 0:00:08]} 43. Be4 {[%clk 0:00:53]}  Bf6 {[%clk 0:00:07]} 44. Rxa3 {[%clk 0:00:49]}  Ke6 {[%clk 0:00:04]} 45. Rh5 {[%clk 0:00:47]}  Be7 {[%clk 0:00:03]} 46. Kf3 {[%clk 0:00:33]}  Rd8 {[%clk 0:00:02]} 47. Kxf4 {[%clk 0:00:32]}  Rb8 {[%clk 0:00:02]} 48. Rh6+ {[%clk 0:00:22]}  Bf6 {[%clk 0:00:02]} 49. Bd5+ {[%clk 0:00:20]}  Ke7 {[%clk 0:00:02]} 50. Kf5 {[%clk 0:00:19]}  Rf8 {[%clk 0:00:02]} 51. Rh7+ {[%clk 0:00:20]}  Kd6 {[%clk 0:00:02]} 52. Bf7 {[%clk 0:00:18]}  Bb2 {[%clk 0:00:02]} 53. Ra2 {[%clk 0:00:17]}  Bd4 {[%clk 0:00:02]} 54. Rh6+ {[%clk 0:00:16]}  Kc7 {[%clk 0:00:01]} 55. Rxa6 {[%clk 0:00:16]}  Rxf7+ {[%clk 0:00:02]} 56. Ke4 {[%clk 0:00:15]}  Re7+ {[%clk 0:00:02]} 57. Kf4 {[%clk 0:00:14]}  Rf7+ {[%clk 0:00:03]} 58. Kg4 {[%clk 0:00:14]}  Rg7+ {[%clk 0:00:02]} 59. Kh5 {[%clk 0:00:15]}  Rh7+ {[%clk 0:00:02]} 60. Rh6 {[%clk 0:00:15]}  Re7 {[%clk 0:00:02]} 61. Rxa5 {[%clk 0:00:15]}  Re3 {[%clk 0:00:02]} 62. Ra7+ {[%clk 0:00:12]}  Kb8 {[%clk 0:00:03]} 63. Rf7 {[%clk 0:00:11]}  Re8 {[%clk 0:00:03]} 64. Rb6+ {[%clk 0:00:10]}  Kc8 {[%clk 0:00:02]} 65. Rc6+ {[%clk 0:00:11]}  Kb8 {[%clk 0:00:03]} 66. Kg4 {[%clk 0:00:10]}  Rg8+ {[%clk 0:00:03]} 67. Kf5 {[%clk 0:00:09]}  Re8 {[%clk 0:00:03]} 68. Re6 {[%clk 0:00:09]}  Rh8 {[%clk 0:00:03]} 69. Ree7 {[%clk 0:00:08]}  Kc8 {[%clk 0:00:00]} 70. Ra7 {[%clk 0:00:07]} 1-0


[Site "https://www.chess.com"]

[Event "Titled Tuesday Blitz July 11 Early 2023"]
[White "Domingo Nunez, Ruben"]
[Black "Szente Varga, Fruzsina"]
[WhiteFideId "22245570"]
[BlackFideId "712264"]
[WhiteElo "2589"]
[BlackElo "2310"]
[Result "1/2-1/2"]
[Round "3"]
[TimeControl "180+2"]
[Date "2023.07.11"]
[WhiteClock "0:00:43"]
[BlackClock "0:00:04"]
[Board "180"]

1. g4 {[%clk 0:03:00]}  d5 {[%clk 0:02:54]} 2. Bg2 {[%clk 0:03:00]}  Bxg4 {[%clk 0:02:41]} 3. c4 {[%clk 0:02:59]}  c6 {[%clk 0:02:30]} 4. cxd5 {[%clk 0:02:51]}  cxd5 {[%clk 0:02:29]} 5. Qb3 {[%clk 0:02:52]}  Nf6 {[%clk 0:02:00]} 6. Qxb7 {[%clk 0:02:49]}  Nbd7 {[%clk 0:01:50]} 7. Nc3 {[%clk 0:02:48]}  e6 {[%clk 0:01:37]} 8. e4 {[%clk 0:02:37]}  dxe4 {[%clk 0:01:18]} 9. Nxe4 {[%clk 0:02:34]}  Rb8 {[%clk 0:00:56]} 10. Nxf6+ {[%clk 0:02:30]}  Qxf6 {[%clk 0:00:47]} 11. Qc7 {[%clk 0:02:20]}  Bc5 {[%clk 0:00:43]} 12. Qg3 {[%clk 0:02:14]}  Bh5 {[%clk 0:00:39]} 13. Nf3 {[%clk 0:02:06]}  O-O {[%clk 0:00:35]} 14. O-O {[%clk 0:02:06]}  Bxf3 {[%clk 0:00:31]} 15. Bxf3 {[%clk 0:02:05]}  Bd4 {[%clk 0:00:31]} 16. Bc6 {[%clk 0:01:58]}  Ne5 {[%clk 0:00:28]} 17. Bg2 {[%clk 0:01:58]}  Bxb2 {[%clk 0:00:27]} 18. Bxb2 {[%clk 0:01:58]}  Rxb2 {[%clk 0:00:27]} 19. d4 {[%clk 0:01:55]}  Ng6 {[%clk 0:00:25]} 20. a4 {[%clk 0:01:51]}  Nf4 {[%clk 0:00:25]} 21. Kh1 {[%clk 0:01:47]}  Qxd4 {[%clk 0:00:22]} 22. a5 {[%clk 0:01:44]}  Nxg2 {[%clk 0:00:21]} 23. Kxg2 {[%clk 0:01:42]}  Qd5+ {[%clk 0:00:21]} 24. Kg1 {[%clk 0:01:41]}  Rb4 {[%clk 0:00:20]} 25. Rfe1 {[%clk 0:01:38]}  Qf5 {[%clk 0:00:18]} 26. h3 {[%clk 0:01:38]}  h5 {[%clk 0:00:18]} 27. Re5 {[%clk 0:01:37]}  Qf6 {[%clk 0:00:17]} 28. Rae1 {[%clk 0:01:33]}  h4 {[%clk 0:00:17]} 29. Qe3 {[%clk 0:01:33]}  Rf4 {[%clk 0:00:16]} 30. Re2 {[%clk 0:01:33]}  Qg6+ {[%clk 0:00:16]} 31. Kh2 {[%clk 0:01:32]}  Ra4 {[%clk 0:00:15]} 32. Qxa7 {[%clk 0:01:30]}  Ra1 {[%clk 0:00:14]} 33. Re1 {[%clk 0:01:27]}  Rxe1 {[%clk 0:00:14]} 34. Rxe1 {[%clk 0:01:28]}  Qf5 {[%clk 0:00:14]} 35. a6 {[%clk 0:01:00]}  Qf4+ {[%clk 0:00:12]} 36. Kg2 {[%clk 0:01:01]}  Rd8 {[%clk 0:00:12]} 37. Qb6 {[%clk 0:00:44]}  Rd5 {[%clk 0:00:11]} 38. a7 {[%clk 0:00:44]}  Rg5+ {[%clk 0:00:11]} 39. Kf1 {[%clk 0:00:45]}  Qc4+ {[%clk 0:00:11]} 40. Re2 {[%clk 0:00:45]}  Qc1+ {[%clk 0:00:11]} 41. Re1 {[%clk 0:00:45]}  Qc4+ {[%clk 0:00:11]} 42. Re2 {[%clk 0:00:44]}  Qc1+ {[%clk 0:00:08]} 43. Re1 {[%clk 0:00:43]}  Qc4+ {[%clk 0:00:04]} 1/2-1/2


[Site "https://www.chess.com"]

[Event "Titled Tuesday Blitz July 11 Early 2023"]
[White "Janaszak, Dawid"]
[Black "AndresDelgado77"]
[WhiteFideId "1119206"]
[WhiteElo "2580"]
[BlackElo "2300"]
[Result "1-0"]
[Round "3"]
[TimeControl "180+2"]
[Date "2023.07.11"]
[WhiteClock "0:00:30"]
[BlackClock "0:00:00"]
[Board "181"]

1. d4 {[%clk 0:03:00]}  Nf6 {[%clk 0:02:57]} 2. Nc3 {[%clk 0:03:00]}  e6 {[%clk 0:02:55]} 3. Bf4 {[%clk 0:02:56]}  c5 {[%clk 0:02:53]} 4. e3 {[%clk 0:02:55]}  a6 {[%clk 0:02:49]} 5. Nf3 {[%clk 0:02:55]}  Qb6 {[%clk 0:02:47]} 6. Qd2 {[%clk 0:02:51]}  Qxb2 {[%clk 0:02:42]} 7. Rb1 {[%clk 0:02:51]}  Qa3 {[%clk 0:02:43]} 8. d5 {[%clk 0:02:42]}  b5 {[%clk 0:01:31]} 9. Bxb5 {[%clk 0:02:21]}  axb5 {[%clk 0:01:11]} 10. Nxb5 {[%clk 0:02:22]}  Ne4 {[%clk 0:01:11]} 11. Nxa3 {[%clk 0:02:04]}  Nxd2 {[%clk 0:01:10]} 12. Nxd2 {[%clk 0:02:01]}  Na6 {[%clk 0:00:54]} 13. Nb5 {[%clk 0:01:56]}  exd5 {[%clk 0:00:50]} 14. c3 {[%clk 0:01:52]}  Bb7 {[%clk 0:00:48]} 15. O-O {[%clk 0:01:44]}  Bc6 {[%clk 0:00:48]} 16. Nf3 {[%clk 0:01:33]}  f6 {[%clk 0:00:46]} 17. Rfd1 {[%clk 0:01:28]}  Kf7 {[%clk 0:00:44]} 18. a4 {[%clk 0:01:23]}  Be7 {[%clk 0:00:41]} 19. h4 {[%clk 0:01:23]}  g6 {[%clk 0:00:40]} 20. Rb2 {[%clk 0:01:16]}  c4 {[%clk 0:00:38]} 21. Nfd4 {[%clk 0:01:09]}  Nc5 {[%clk 0:00:37]} 22. Nd6+ {[%clk 0:01:07]}  Bxd6 {[%clk 0:00:36]} 23. Bxd6 {[%clk 0:01:07]}  Nxa4 {[%clk 0:00:33]} 24. Rc2 {[%clk 0:01:05]}  Ra6 {[%clk 0:00:28]} 25. Bb4 {[%clk 0:01:02]}  Nb6 {[%clk 0:00:25]} 26. Ne2 {[%clk 0:01:02]}  Ba4 {[%clk 0:00:20]} 27. Ra1 {[%clk 0:00:59]}  Rha8 {[%clk 0:00:19]} 28. Rd2 {[%clk 0:00:59]}  Bc6 {[%clk 0:00:17]} 29. Rxa6 {[%clk 0:00:58]}  Rxa6 {[%clk 0:00:17]} 30. Nf4 {[%clk 0:00:59]}  Ra1+ {[%clk 0:00:17]} 31. Kh2 {[%clk 0:01:00]}  Na4 {[%clk 0:00:17]} 32. Nxd5 {[%clk 0:00:58]}  Rc1 {[%clk 0:00:15]} 33. Rd4 {[%clk 0:00:47]}  Bxd5 {[%clk 0:00:12]} 34. Rxd5 {[%clk 0:00:47]}  Nxc3 {[%clk 0:00:13]} 35. Rxd7+ {[%clk 0:00:47]}  Kg8 {[%clk 0:00:13]} 36. Rc7 {[%clk 0:00:45]}  Ne4 {[%clk 0:00:13]} 37. f3 {[%clk 0:00:43]}  Nf2 {[%clk 0:00:10]} 38. Be7 {[%clk 0:00:37]}  c3 {[%clk 0:00:06]} 39. Bxf6 {[%clk 0:00:33]}  Nd1 {[%clk 0:00:06]} 40. e4 {[%clk 0:00:31]}  Rb1 {[%clk 0:00:00]} 41. e5 {[%clk 0:00:30]} 1-0


[Site "https://www.chess.com"]

[Event "Titled Tuesday Blitz July 11 Early 2023"]
[White "Vaglio Munoz, Jaime"]
[Black "Palencia Morales, Wilson Guillermo"]
[WhiteFideId "6500145"]
[BlackFideId "4401859"]
[WhiteElo "2290"]
[BlackElo "2534"]
[Result "0-1"]
[Round "3"]
[TimeControl "180+2"]
[Date "2023.07.11"]
[WhiteClock "0:00:04"]
[BlackClock "0:00:08"]
[Board "185"]

1. Nf3 {[%clk 0:03:00]}  g6 {[%clk 0:02:56]} 2. b3 {[%clk 0:02:58]}  Bg7 {[%clk 0:02:56]} 3. d4 {[%clk 0:02:58]}  c5 {[%clk 0:02:53]} 4. Bb2 {[%clk 0:02:57]}  Nc6 {[%clk 0:02:52]} 5. e3 {[%clk 0:02:57]}  d6 {[%clk 0:02:49]} 6. Qc1 {[%clk 0:02:57]}  cxd4 {[%clk 0:02:47]} 7. Nxd4 {[%clk 0:02:56]}  Nf6 {[%clk 0:02:46]} 8. Nxc6 {[%clk 0:02:51]}  bxc6 {[%clk 0:02:45]} 9. c4 {[%clk 0:02:51]}  O-O {[%clk 0:02:44]} 10. Be2 {[%clk 0:02:51]}  d5 {[%clk 0:02:42]} 11. O-O {[%clk 0:02:50]}  Qd6 {[%clk 0:02:30]} 12. h3 {[%clk 0:02:48]}  e5 {[%clk 0:02:30]} 13. Ba3 {[%clk 0:02:43]}  Qe6 {[%clk 0:02:01]} 14. Bxf8 {[%clk 0:02:41]}  Bxf8 {[%clk 0:02:01]} 15. Nd2 {[%clk 0:02:37]}  e4 {[%clk 0:01:54]} 16. a3 {[%clk 0:02:28]}  Bd6 {[%clk 0:01:54]} 17. Rd1 {[%clk 0:02:24]}  Qe5 {[%clk 0:01:50]} 18. Nf1 {[%clk 0:02:22]}  Be6 {[%clk 0:01:47]} 19. c5 {[%clk 0:02:05]}  Bc7 {[%clk 0:01:46]} 20. b4 {[%clk 0:02:05]}  Qg5 {[%clk 0:01:39]} 21. Kh1 {[%clk 0:01:53]}  Be5 {[%clk 0:01:37]} 22. Rb1 {[%clk 0:01:50]}  Qh6 {[%clk 0:01:37]} 23. Kg1 {[%clk 0:01:45]}  Qg5 {[%clk 0:01:36]} 24. Kh1 {[%clk 0:01:44]}  Qh4 {[%clk 0:01:35]} 25. Kg1 {[%clk 0:01:43]}  g5 {[%clk 0:01:29]} 26. b5 {[%clk 0:01:33]}  g4 {[%clk 0:01:28]} 27. g3 {[%clk 0:01:29]}  Qxh3 {[%clk 0:01:22]} 28. bxc6 {[%clk 0:01:25]}  h5 {[%clk 0:01:22]} 29. Rb7 {[%clk 0:01:03]}  h4 {[%clk 0:01:21]} 30. Re7 {[%clk 0:00:50]}  hxg3 {[%clk 0:01:16]} 31. fxg3 {[%clk 0:00:48]}  Nh5 {[%clk 0:00:44]} 32. Rxe6 {[%clk 0:00:38]}  fxe6 {[%clk 0:00:42]} 33. Bxg4 {[%clk 0:00:37]}  Qxg4 {[%clk 0:00:38]} 34. Rd2 {[%clk 0:00:36]}  Rf8 {[%clk 0:00:34]} 35. Rg2 {[%clk 0:00:35]}  Rf3 {[%clk 0:00:31]} 36. c7 {[%clk 0:00:34]}  Bxc7 {[%clk 0:00:31]} 37. Qb1 {[%clk 0:00:32]}  Nxg3 {[%clk 0:00:27]} 38. Nh2 {[%clk 0:00:28]}  Qh3 {[%clk 0:00:19]} 39. Qe1 {[%clk 0:00:20]}  Rf7 {[%clk 0:00:18]} 40. c6 {[%clk 0:00:13]}  Rg7 {[%clk 0:00:18]} 41. Qf2 {[%clk 0:00:11]}  Nf5 {[%clk 0:00:17]} 42. Rxg7+ {[%clk 0:00:10]}  Kxg7 {[%clk 0:00:17]} 43. Qg2+ {[%clk 0:00:09]}  Qxg2+ {[%clk 0:00:17]} 44. Kxg2 {[%clk 0:00:10]}  Nxe3+ {[%clk 0:00:18]} 45. Kh3 {[%clk 0:00:10]}  Nc4 {[%clk 0:00:16]} 46. Ng4 {[%clk 0:00:07]}  Na5 {[%clk 0:00:16]} 47. Ne3 {[%clk 0:00:06]}  Nxc6 {[%clk 0:00:16]} 48. Nc2 {[%clk 0:00:07]}  Kf6 {[%clk 0:00:16]} 49. Kg4 {[%clk 0:00:07]}  e5 {[%clk 0:00:15]} 50. Kg3 {[%clk 0:00:07]}  d4 {[%clk 0:00:15]} 51. Kf2 {[%clk 0:00:07]}  e3+ {[%clk 0:00:14]} 52. Ke2 {[%clk 0:00:07]}  Kf5 {[%clk 0:00:14]} 53. Ne1 {[%clk 0:00:06]}  e4 {[%clk 0:00:14]} 54. Kd1 {[%clk 0:00:05]}  d3 {[%clk 0:00:13]} 55. a4 {[%clk 0:00:06]}  Ba5 {[%clk 0:00:13]} 56. Ng2 {[%clk 0:00:04]}  e2+ {[%clk 0:00:13]} 57. Kc1 {[%clk 0:00:05]}  d2+ {[%clk 0:00:13]} 58. Kb2 {[%clk 0:00:04]}  e1=Q {[%clk 0:00:11]} 59. Ne3+ {[%clk 0:00:05]}  Qxe3 {[%clk 0:00:10]} 60. Kc2 {[%clk 0:00:04]}  Qc3+ {[%clk 0:00:09]} 61. Kd1 {[%clk 0:00:04]}  Qc1+ {[%clk 0:00:09]} 62. Ke2 {[%clk 0:00:04]}  Qe1# {[%clk 0:00:08]} 0-1


[Site "https://www.chess.com"]

[Event "Titled Tuesday Blitz July 11 Early 2023"]
[White "Adla, Diego"]
[Black "MunichMouse"]
[WhiteFideId "100072"]
[WhiteElo "2532"]
[BlackElo "2288"]
[Result "0-1"]
[Round "3"]
[TimeControl "180+2"]
[Date "2023.07.11"]
[WhiteClock "0:00:59"]
[BlackClock "0:00:43"]
[Board "186"]

1. e4 {[%clk 0:03:00]}  c5 {[%clk 0:03:00]} 2. Nf3 {[%clk 0:02:59]}  d6 {[%clk 0:03:00]} 3. d4 {[%clk 0:03:00]}  cxd4 {[%clk 0:03:00]} 4. Nxd4 {[%clk 0:03:01]}  Nf6 {[%clk 0:03:01]} 5. Nc3 {[%clk 0:03:01]}  a6 {[%clk 0:03:02]} 6. Be3 {[%clk 0:03:01]}  Ng4 {[%clk 0:03:01]} 7. Qd2 {[%clk 0:02:53]}  Nxe3 {[%clk 0:03:00]} 8. Qxe3 {[%clk 0:02:53]}  g6 {[%clk 0:03:01]} 9. O-O-O {[%clk 0:02:52]}  Bg7 {[%clk 0:03:01]} 10. Kb1 {[%clk 0:02:45]}  e6 {[%clk 0:02:53]} 11. f3 {[%clk 0:02:39]}  O-O {[%clk 0:02:53]} 12. g4 {[%clk 0:02:39]}  Nc6 {[%clk 0:02:47]} 13. Nb3 {[%clk 0:02:32]}  Qc7 {[%clk 0:02:42]} 14. h4 {[%clk 0:02:31]}  Nb4 {[%clk 0:02:33]} 15. h5 {[%clk 0:02:25]}  d5 {[%clk 0:02:27]} 16. exd5 {[%clk 0:02:17]}  Bxc3 {[%clk 0:02:27]} 17. Qxc3 {[%clk 0:02:15]}  Qxc3 {[%clk 0:02:27]} 18. bxc3 {[%clk 0:02:14]}  Nxd5 {[%clk 0:02:27]} 19. Kb2 {[%clk 0:02:13]}  b5 {[%clk 0:02:25]} 20. hxg6 {[%clk 0:02:06]}  hxg6 {[%clk 0:02:24]} 21. c4 {[%clk 0:02:02]}  Ne3 {[%clk 0:02:18]} 22. Rd4 {[%clk 0:01:58]}  bxc4 {[%clk 0:02:04]} 23. Bxc4 {[%clk 0:01:57]}  Bb7 {[%clk 0:02:02]} 24. Rf4 {[%clk 0:01:55]}  Bxf3 {[%clk 0:01:54]} 25. Rxf3 {[%clk 0:01:47]}  Nxc4+ {[%clk 0:01:53]} 26. Kb1 {[%clk 0:01:43]}  a5 {[%clk 0:01:50]} 27. Rfh3 {[%clk 0:01:42]}  Kg7 {[%clk 0:01:39]} 28. g5 {[%clk 0:01:41]}  Rh8 {[%clk 0:01:39]} 29. Nc5 {[%clk 0:01:30]}  Rab8+ {[%clk 0:01:33]} 30. Kc1 {[%clk 0:01:26]}  Rxh3 {[%clk 0:01:32]} 31. Rxh3 {[%clk 0:01:24]}  Rh8 {[%clk 0:01:33]} 32. Rxh8 {[%clk 0:01:20]}  Kxh8 {[%clk 0:01:34]} 33. Ne4 {[%clk 0:01:17]}  Kg7 {[%clk 0:01:32]} 34. Kd1 {[%clk 0:01:16]}  Kf8 {[%clk 0:01:19]} 35. Nf6 {[%clk 0:01:14]}  Ke7 {[%clk 0:01:16]} 36. Ke2 {[%clk 0:01:14]}  Kd6 {[%clk 0:01:08]} 37. Kd3 {[%clk 0:01:14]}  Ne5+ {[%clk 0:00:54]} 38. Kc3 {[%clk 0:01:09]}  Nf3 {[%clk 0:00:50]} 39. Ne4+ {[%clk 0:01:08]}  Ke5 {[%clk 0:00:46]} 40. Kd3 {[%clk 0:01:07]}  Ne1+ {[%clk 0:00:45]} 41. Ke3 {[%clk 0:01:06]}  Nxc2+ {[%clk 0:00:45]} 42. Kd3 {[%clk 0:01:04]}  Nb4+ {[%clk 0:00:44]} 43. Ke3 {[%clk 0:00:59]}  Nxa2 {[%clk 0:00:43]} 0-1


[Site "https://www.chess.com"]

[Event "Titled Tuesday Blitz July 11 Early 2023"]
[White "Kubicka, Anna"]
[Black "Liu, Kelsey"]
[WhiteFideId "1152254"]
[BlackFideId "30944481"]
[WhiteElo "2503"]
[BlackElo "2263"]
[Result "0-1"]
[Round "3"]
[TimeControl "180+2"]
[Date "2023.07.11"]
[WhiteClock "0:00:08"]
[BlackClock "0:00:06"]
[Board "188"]

1. e4 {[%clk 0:03:00]}  c5 {[%clk 0:02:58]} 2. Ne2 {[%clk 0:03:00]}  Nc6 {[%clk 0:02:58]} 3. g3 {[%clk 0:03:00]}  g6 {[%clk 0:02:58]} 4. Bg2 {[%clk 0:03:01]}  Bg7 {[%clk 0:02:59]} 5. O-O {[%clk 0:03:02]}  e5 {[%clk 0:02:56]} 6. Nbc3 {[%clk 0:03:00]}  Nge7 {[%clk 0:02:53]} 7. Nd5 {[%clk 0:02:57]}  O-O {[%clk 0:02:51]} 8. d3 {[%clk 0:02:57]}  d6 {[%clk 0:02:51]} 9. Bg5 {[%clk 0:02:56]}  Be6 {[%clk 0:02:50]} 10. Qd2 {[%clk 0:02:55]}  Qd7 {[%clk 0:02:43]} 11. f4 {[%clk 0:02:52]}  f6 {[%clk 0:02:38]} 12. Nxe7+ {[%clk 0:02:51]}  Qxe7 {[%clk 0:02:30]} 13. Bh4 {[%clk 0:02:51]}  Bg4 {[%clk 0:02:23]} 14. Bf3 {[%clk 0:02:33]}  Bxf3 {[%clk 0:02:07]} 15. Rxf3 {[%clk 0:02:34]}  Bh6 {[%clk 0:02:07]} 16. g4 {[%clk 0:02:26]}  exf4 {[%clk 0:01:51]} 17. Qc3 {[%clk 0:02:15]}  Ne5 {[%clk 0:01:47]} 18. Rh3 {[%clk 0:02:12]}  Nxg4 {[%clk 0:01:41]} 19. Rf1 {[%clk 0:02:11]}  Qe5 {[%clk 0:01:35]} 20. Qb3+ {[%clk 0:02:08]}  Kg7 {[%clk 0:01:34]} 21. Qxb7+ {[%clk 0:02:08]}  Kh8 {[%clk 0:01:26]} 22. Be1 {[%clk 0:02:03]}  Ne3 {[%clk 0:01:16]} 23. Rf2 {[%clk 0:01:49]}  Rab8 {[%clk 0:01:06]} 24. Qxa7 {[%clk 0:01:47]}  Rxb2 {[%clk 0:01:06]} 25. Kh1 {[%clk 0:01:46]}  Rb1 {[%clk 0:01:06]} 26. Rf1 {[%clk 0:01:16]}  Nxf1 {[%clk 0:01:04]} 27. Rxh6 {[%clk 0:01:16]}  Ng3+ {[%clk 0:00:54]} 28. Nxg3 {[%clk 0:01:04]}  Rxe1+ {[%clk 0:00:53]} 29. Kg2 {[%clk 0:01:03]}  f3+ {[%clk 0:00:40]} 30. Kf2 {[%clk 0:01:00]}  Qd4+ {[%clk 0:00:25]} 31. Kxe1 {[%clk 0:00:59]}  Qe3+ {[%clk 0:00:17]} 32. Kf1 {[%clk 0:00:50]}  Qxh6 {[%clk 0:00:18]} 33. Qe7 {[%clk 0:00:46]}  Qh3+ {[%clk 0:00:17]} 34. Kf2 {[%clk 0:00:42]}  Qg2+ {[%clk 0:00:17]} 35. Ke3 {[%clk 0:00:42]}  Kg8 {[%clk 0:00:12]} 36. Qe6+ {[%clk 0:00:41]}  Kg7 {[%clk 0:00:12]} 37. Qg4 {[%clk 0:00:34]}  Qg1+ {[%clk 0:00:06]} 38. Kxf3 {[%clk 0:00:33]}  Qd1+ {[%clk 0:00:06]} 39. Ne2 {[%clk 0:00:34]}  f5 {[%clk 0:00:07]} 40. Qg5 {[%clk 0:00:13]}  fxe4+ {[%clk 0:00:07]} 41. Ke3 {[%clk 0:00:13]}  Rf3+ {[%clk 0:00:04]} 42. Kxe4 {[%clk 0:00:11]}  Qxe2+ {[%clk 0:00:05]} 43. Kd5 {[%clk 0:00:08]}  Rf5+ {[%clk 0:00:06]} 0-1


[Site "https://www.chess.com"]